fUSD/lending_fUSD_20250110
["ID","MTS","AMOUNT","RATE_DAILY","PERIOD"]
[348398688,1736506241989,-500.0,9.998e-05,2]
[348398689,1736506241998,-527.51,9.998e-05,2]
[348398690,1736506242009,-500.0,9.998e-05,2]
[348398691,1736506242019,-794.61,9.998e-05,2]
[348398692,1736506242028,-278.904128,9.998e-05,2]
[348398693,1736506242037,-501.26982791,9.998e-05,2]
[348398694,1736506242046,-670.4,9.998e-05,2]
[348398695,1736506242055,-757.0,9.998e-05,2]
[348398696,1736506242065,-625.47,9.998e-05,2]
[348398697,1736506242075,-586.03,9.998e-05,2]
[348398698,1736506242083,-500.0,9.998e-05,2]
[348398699,1736506242097,-747.13,9.998e-05,2]
[348398700,1736506242108,-2399.16,9.998e-05,2]
[348398701,1736506242117,-500.0,9.998e-05,2]
[348398702,1736506242127,-500.0,9.998e-05,2]
[348398703,1736506242137,-572.7,9.998e-05,2]
[348398704,1736506242147,-630.46,9.998e-05,2]
[348398705,1736506242157,-691.97,9.998e-05,2]
[348398706,1736506242166,-500.0,9.998e-05,2]
[348398707,1736506242176,-617.14,9.998e-05,2]
[348398708,1736506242185,-2907.01,9.998e-05,2]
[348398709,1736506242195,-500.0,9.998e-05,2]
[348398710,1736506242206,-733.08,9.998e-05,2]
[348398711,1736506242215,-500.0,9.998e-05,2]
[348398712,1736506242224,-500.0,9.998e-05,2]
[348398713,1736506242234,-157.54953626,9.998e-05,2]
[348398714,1736506242244,-653.82,9.998e-05,2]
[348398715,1736506242253,-500.0,9.998e-05,2]
[348398716,1736506242264,-807.32,9.998e-05,2]
[348398717,1736506242277,-2630.88,9.998e-05,2]
[348398718,1736506242287,-616.12,9.998e-05,2]
[348398719,1736506242298,-505.96914524,9.998e-05,2]
[348398720,1736506242308,-796.74,9.998e-05,2]
[348398721,1736506242319,-839.5,9.998e-05,2]
[348398722,1736506242331,-517.14,9.998e-05,2]
[348398723,1736506242342,-668.0,9.998e-05,2]
[348398724,1736506242352,-2541.06,9.998e-05,2]
[348398725,1736506242361,-801.88,9.998e-05,2]
[348398726,1736506242370,-956.18,9.998e-05,2]
[348398727,1736506242379,-500.0,9.998e-05,2]
[348398728,1736506242389,-507.55,9.998e-05,2]
[348398729,1736506242399,-825.08,9.998e-05,2]
[348398732,1736506242408,-923.35,9.998e-05,2]
[348398735,1736506242417,-564.37743811,9.998e-05,2]
[348398738,1736506242426,-500.0,9.998e-05,2]
[348398740,1736506242435,-633.39,9.998e-05,2]
[348398741,1736506242444,-675.87,9.998e-05,2]
[348398742,1736506242454,-500.0,9.998e-05,2]
[348398743,1736506242464,-850.89,9.998e-05,2]
[348398744,1736506242473,-500.0,9.998e-05,2]
[348398745,1736506242482,-697.69,9.998e-05,2]
[348398746,1736506242493,-1000.0,9.998e-05,2]
[348398747,1736506242503,-500.0,9.998e-05,2]
[348398749,1736506242512,-500.0,9.998e-05,2]
[348398751,1736506242521,-591.71,9.998e-05,2]
[348398753,1736506242530,-872.44,9.998e-05,2]
[348398754,1736506242539,-726.89,9.998e-05,2]
[348398757,1736506242549,-500.0,9.998e-05,2]
[348398759,1736506242558,-2514.7,9.998e-05,2]
[348398761,1736506242567,-500.0,9.998e-05,2]
[348398762,1736506242576,-889.67,9.998e-05,2]
[348398763,1736506242585,-258.127032,9.998e-05,2]
[348398764,1736506242594,-492.5947141,9.998e-05,2]
[348398765,1736506242603,-500.0,9.998e-05,2]
[348398766,1736506242612,-500.0,9.998e-05,2]
[348398767,1736506242621,-500.0,9.998e-05,2]
[348398768,1736506242631,-500.0,9.998e-05,2]
[348398769,1736506242640,-501.51236171,9.998e-05,2]
[348398770,1736506242649,-500.0,9.998e-05,2]
[348398771,1736506242658,-581.21,9.998e-05,2]
[348398772,1736506242667,-925.78,9.998e-05,2]
[348398773,1736506242676,-631.99,9.998e-05,2]
[348398775,1736506242685,-502.01895206,9.998e-05,2]
[348398776,1736506242694,-503.86,9.998e-05,2]
[348398778,1736506242704,-501.11153117,9.998e-05,2]
[348398780,1736506242714,-500.0,9.998e-05,2]
[348398782,1736506242723,-1600.68,9.998e-05,2]
[348398784,1736506242732,-500.0,9.998e-05,2]
[348398786,1736506242742,-612.9,9.998e-05,2]
[348398788,1736506242751,-500.0,9.998e-05,2]
[348398790,1736506242761,-500.0,9.998e-05,2]
[348398791,1736506242770,-710.72,9.998e-05,2]
[348398793,1736506242779,-585.66,9.998e-05,2]
[348398794,1736506242788,-704.67,9.998e-05,2]
[348398795,1736506242797,-500.0,9.998e-05,2]
[348398796,1736506242805,-500.0,9.998e-05,2]
[348398797,1736506242814,-500.0,9.998e-05,2]
[348398798,1736506242823,-500.0,9.998e-05,2]
[348398799,1736506242832,-1000.0,9.999e-05,2]
[348398800,1736506242841,-505.79516361,9.999e-05,2]
[348398801,1736506242851,-574.53,9.999e-05,2]
[348398802,1736506242861,-500.0,9.999e-05,2]
[348398803,1736506242871,-593.51436777,9.999e-05,2]
[348398804,1736506242880,-500.0,9.999e-05,2]
[348398805,1736506242889,-500.0,9.999e-05,2]
[348398806,1736506242899,-500.0,9.999e-05,2]
[348398807,1736506242909,-500.0,9.999e-05,2]
[348398808,1736506242919,-500.0,9.999e-05,2]
[348398809,1736506242928,-500.0,9.999e-05,2]
[348398810,1736506242938,-500.0,9.999e-05,2]
[348398811,1736506242947,-500.0,9.999e-05,2]
[348398812,1736506242957,-500.0,9.999e-05,2]
[348398813,1736506242970,-500.0,9.999e-05,2]
[348398814,1736506242979,-500.0,9.999e-05,2]
[348398815,1736506242988,-306.35948099,9.999e-05,2]
[348398816,1736506242998,-507.02491176,9.999e-05,2]
[348398817,1736506243008,-505.81854637,9.999e-05,2]
[348398818,1736506243019,-500.0,9.999e-05,2]
[348398819,1736506243028,-500.0,9.999e-05,2]
[348398820,1736506243038,-500.0,9.999e-05,2]
[348398821,1736506243047,-579.16,9.999e-05,2]
[348398822,1736506243058,-500.0,9.999e-05,2]
[348398823,1736506243067,-500.0,9.999e-05,2]
[348398824,1736506243077,-500.0,9.999e-05,2]
[348398825,1736506243086,-500.0,9.999e-05,2]
[348398826,1736506243096,-382.09054531,9.999e-05,2]
[348398827,1736506243105,-500.0,9.999e-05,2]
[348398828,1736506243115,-520.78958352,9.999e-05,2]
[348398829,1736506243124,-508.58976617,9.999e-05,2]
[348398830,1736506243133,-317.17256159,9.999e-05,2]
[348398831,1736506243278,-212.69743841,9.999e-05,2]
[348398832,1736506243287,-540.93097216,9.999e-05,2]
[348398833,1736506243945,-366.45751829,9.999e-05,2]
[348398834,1736506243958,-523.29150955,9.999e-05,2]
[348398835,1736506243973,-500.0,9.999e-05,2]
[348398836,1736506243982,-508.36826225,9.999e-05,2]
[348398837,1736506243992,-500.0,9.999e-05,2]
[348398838,1736506244002,-500.0,9.999e-05,2]
[348398839,1736506244012,-500.0,9.999e-05,2]
[348398840,1736506244021,-500.0,9.999e-05,2]
[348398841,1736506244031,-311.11288166,9.999e-05,2]
[348398842,1736506244068,-500.0,9.997e-05,2]
[348398843,1736506244078,-188.88711834,9.999e-05,2]
[348398844,1736506244087,-542.01,9.999e-05,2]
[348398845,1736506244097,-500.0,9.999e-05,2]
[348398846,1736506244106,-500.0,9.999e-05,2]
[348398847,1736506244115,-500.0,9.999e-05,2]
[348398848,1736506244124,-500.0,9.999e-05,2]
[348398849,1736506244133,-500.0,9.999e-05,2]
[348398850,1736506244143,-500.0,9.999e-05,2]
[348398851,1736506244154,-500.0,9.999e-05,2]
[348398852,1736506244164,-501.0590304,9.999e-05,2]
[348398853,1736506244174,-500.0,9.999e-05,2]
[348398854,1736506244183,-503.18351931,9.999e-05,2]
[348398855,1736506244192,-500.0,9.999e-05,2]
[348398856,1736506244201,-500.0,9.999e-05,2]
[348398857,1736506244210,-502.32746137,9.999e-05,2]
[348398858,1736506244219,-500.0,9.999e-05,2]
[348398859,1736506244229,-500.0,9.999e-05,2]
[348398860,1736506244239,-500.0,9.999e-05,2]
[348398861,1736506244249,-313.17887949,9.999e-05,2]
[348398862,1736506244260,-500.0,9.999e-05,2]
[348398863,1736506244270,-500.0,9.999e-05,2]
[348398864,1736506244280,-500.0,9.999e-05,2]
[348398865,1736506244289,-500.0,9.999e-05,2]
[348398866,1736506244299,-500.0,9.999e-05,2]
[348398867,1736506244309,-500.0,9.999e-05,2]
[348398868,1736506244320,-507.18025732,9.999e-05,2]
[348398869,1736506244329,-502.18727088,9.999e-05,2]
[348398870,1736506244338,-500.0,9.999e-05,2]
[348398871,1736506244347,-500.0,9.999e-05,2]
[348398872,1736506244356,-500.0,9.999e-05,2]
[348398873,1736506244365,-500.0,9.999e-05,2]
[348398874,1736506244375,-500.0,9.999e-05,2]
[348398875,1736506244384,-500.0,9.999e-05,2]
[348398876,1736506244393,-512.45984954,9.999e-05,2]
[348398877,1736506244403,-500.0,9.999e-05,2]
[348398878,1736506244412,-507.09721686,9.999e-05,2]
[348398879,1736506244421,-500.0,9.999e-05,2]
[348398880,1736506244431,-505.96000966,9.999e-05,2]
[348398881,1736506244440,-500.0,9.999e-05,2]
[348398882,1736506244449,-505.80880925,9.999e-05,2]
[348398883,1736506244459,-504.42546372,9.999e-05,2]
[348398884,1736506244469,-506.28537832,9.999e-05,2]
[348398885,1736506244478,-500.0,9.999e-05,2]
[348398886,1736506244489,-500.0,9.999e-05,2]
[348398887,1736506244501,-642.39577012,9.999e-05,2]
[348398888,1736506244512,-276.34539194,9.999e-05,2]
[348398889,1736506244527,-226.81238582,9.999e-05,2]
[348398890,1736506244536,-139.92242063,9.999e-05,2]
[348398896,1736506245800,-360.07757937,9.999e-05,2]
[348398897,1736506246015,-180.08787394,9.999e-05,2]
[348398898,1736506246047,-319.91212606,9.999e-05,2]
[348398899,1736506246057,-500.0,9.999e-05,2]
[348398900,1736506246066,-500.0,9.999e-05,2]
[348398902,1736506246075,-500.0,9.999e-05,2]
[348398904,1736506246085,-500.0,9.999e-05,2]
[348398906,1736506246094,-500.0,9.999e-05,2]
[348398909,1736506246105,-500.0,9.999e-05,2]
[348398910,1736506246114,-500.0,9.999e-05,2]
[348398912,1736506246123,-502.61929144,9.999e-05,2]
[348398914,1736506246134,-157.435942,9.999e-05,2]
[348398915,1736506246143,-275.7826405,9.999e-05,2]
[348398916,1736506246156,-224.2173595,9.999e-05,2]
[348398917,1736506246165,-328.65380298,9.999e-05,2]
[348398918,1736506911053,843.13,8.219e-05,2]
[348398961,1736507432158,-250.0,8.651e-05,2]
[348398962,1736507432169,-308.88,8.756e-05,2]
[348398963,1736507432178,-150.0,9e-05,2]
[348398964,1736507432187,-122.652,9e-05,2]
[348398965,1736507432199,-27.348,9e-05,2]
[348398966,1736507432208,-150.0,9e-05,2]
[348398967,1736507432217,-111.45481234,9e-05,2]
[348398968,1736507432229,-38.54518766,9e-05,2]
[348398969,1736507432237,-1170.55904779,9e-05,3]
[348398970,1736507432249,-329.44095221,9e-05,3]
[348398971,1736507432258,-300.0,9.014e-05,2]
[348398972,1736507432267,-293.25600325,9.015e-05,2]
[348398973,1736507432339,-483.04,9.015e-05,2]
[348398974,1736507432350,-536.60331088,9.015e-05,2]
[348398975,1736507432362,-20353.37068587,9.015e-05,2]
[348398976,1736507432375,-1000.0,9.024e-05,2]
[348398977,1736507432385,-526.59,9.027e-05,2]
[348398978,1736507432394,-3100.0,9.1e-05,3]
[348398979,1736507432404,-197.02,9.107e-05,2]
[348398980,1736507432414,-150.0,9.111e-05,2]
[348398981,1736507432424,-4700.0,9.2e-05,3]
[348398982,1736507432435,-150.0,9.222e-05,2]
[348398983,1736507432445,-150.0,9.25e-05,2]
[348398984,1736507432455,-120.65655493,9.3e-05,3]
[348398985,1736507432467,-1727.4936,9.3e-05,3]
[348399005,1736507437898,-875.96522804,9.3e-05,3]
[348399006,1736507438007,-3575.88461703,9.3e-05,3]
[348399007,1736507438017,-150.0,9.333e-05,2]
[348399008,1736507438026,-150.0,9.333e-05,2]
[348399009,1736507438035,-150.60824624,9.385e-05,2]
[348399010,1736507438044,-250.0,9.397e-05,2]
[348399011,1736507438054,-7900.0,9.4e-05,3]
[348399012,1736507438064,-150.0,9.444e-05,2]
[348399013,1736507438073,-150.0,9.458e-05,2]
[348399014,1736507438083,-150.0,9.5e-05,2]
[348399015,1736507438092,-1500.0,9.5e-05,3]
[348399016,1736507438102,-150.0,9.556e-05,2]
[348399017,1736507438111,-1500.0,9.6e-05,3]
[348399018,1736507438120,-150.0,9.666e-05,2]
[348399019,1736507438129,-150.0,9.667e-05,2]
[348399020,1736507438138,-150.0,9.667e-05,2]
[348399021,1736507438147,-500.0,9.671e-05,2]
[348399022,1736507438156,-500.0,9.671e-05,2]
[348399023,1736507438165,-500.0,9.671e-05,2]
[348399024,1736507438176,-1500.0,9.7e-05,3]
[348399025,1736507438185,-150.0,9.721e-05,2]
[348399026,1736507438194,-150.0,9.75e-05,2]
[348399027,1736507438204,-480.72,9.75e-05,2]
[348399028,1736507438213,-150.99,9.75e-05,2]
[348399029,1736507438223,-999.99,9.75e-05,2]
[348399030,1736507438232,-9999.99,9.75e-05,2]
[348399031,1736507438241,-7901.11,9.75e-05,2]
[348399032,1736507438250,-463.85,9.75e-05,2]
[348399033,1736507438260,-150.99,9.75e-05,2]
[348399034,1736507438269,-150.0,9.75e-05,2]
[348399035,1736507438278,-150.0,9.778e-05,2]
[348399036,1736507438288,-1500.0,9.8e-05,3]
[348399037,1736507438297,-150.37541711,9.873e-05,2]
[348399038,1736507438306,-150.0,9.889e-05,2]
[348399039,1736507438315,-500.0,9.89e-05,2]
[348399041,1736507438324,-150.0,9.894e-05,2]
[348399043,1736507438333,-1000.0,9.897e-05,2]
[348399045,1736507438342,-1684.2086,9.897e-05,2]
[348399047,1736507438351,-13400.3031,9.898e-05,2]
[348399049,1736507438360,-226.4662,9.898e-05,2]
[348399051,1736507438374,-2444.0,9.9e-05,3]
[348399053,1736507438383,-1832.685,9.972e-05,2]
[348399055,1736507438392,-238.442,9.972e-05,2]
[348399056,1736507438401,-53189.0,9.973e-05,2]
[348399058,1736507438411,-618.55,9.995e-05,2]
[348399060,1736507438420,-500.43,9.995e-05,2]
[348399062,1736507438429,-578.72,9.995e-05,2]
[348399064,1736507438438,-1087.01,9.995e-05,2]
[348399066,1736507438449,-889.83,9.995e-05,2]
[348399068,1736507438458,-1091.77,9.995e-05,2]
[348399070,1736507438468,-1363.35,9.995e-05,2]
[348399072,1736507438477,-725.55,9.995e-05,2]
[348399074,1736507438487,-504.76,9.995e-05,2]
[348399076,1736507438495,-638.91,9.995e-05,2]
[348399078,1736507438504,-1299.5,9.995e-05,2]
[348399080,1736507438515,-536.17,9.995e-05,2]
[348399082,1736507438526,-698.51,9.995e-05,2]
[348399084,1736507438536,-500.0,9.995e-05,2]
[348399086,1736507438545,-963.36,9.995e-05,2]
[348399088,1736507438554,-556.99,9.995e-05,2]
[348399090,1736507438563,-667.47,9.995e-05,2]
[348399092,1736507438573,-500.0,9.995e-05,2]
[348399094,1736507438582,-1729.88,9.995e-05,2]
[348399096,1736507438591,-827.09,9.995e-05,2]
[348399098,1736507438600,-500.0,9.995e-05,2]
[348399100,1736507438609,-606.25,9.995e-05,2]
[348399102,1736507438619,-500.0,9.996e-05,2]
[348399104,1736507438628,-500.0,9.996e-05,2]
[348399106,1736507438636,-500.0,9.996e-05,2]
[348399108,1736507438645,-614.47354254,9.996e-05,2]
[348399110,1736507438654,-500.0,9.996e-05,2]
[348399112,1736507438663,-223.44619702,9.996e-05,2]
[348399114,1736507438674,-500.0,9.996e-05,2]
[348399116,1736507438683,-726.32,9.996e-05,2]
[348399118,1736507438692,-573.04,9.996e-05,2]
[348399120,1736507438701,-506.17088091,9.996e-05,2]
[348399122,1736507438710,-529.76,9.996e-05,2]
[348399124,1736507438720,-557.65,9.996e-05,2]
[348399126,1736507438730,-500.0,9.996e-05,2]
[348399128,1736507438739,-500.0,9.996e-05,2]
[348399130,1736507438748,-648.34,9.996e-05,2]
[348399132,1736507438757,-500.0,9.996e-05,2]
[348399134,1736507438766,-500.0,9.996e-05,2]
[348399136,1736507438776,-500.0,9.996e-05,2]
[348399138,1736507438784,-500.0,9.996e-05,2]
[348399140,1736507438794,-500.0,9.996e-05,2]
[348399142,1736507438803,-596.48390483,9.996e-05,2]
[348399144,1736507438812,-500.0,9.996e-05,2]
[348399145,1736507438821,-511.72043616,9.996e-05,2]
[348399147,1736507438831,-500.0,9.996e-05,2]
[348399150,1736507438840,-578.21895945,9.996e-05,2]
[348399152,1736507438849,-500.0,9.996e-05,2]
[348399153,1736507438859,-500.0,9.996e-05,2]
[348399156,1736507438869,-500.0,9.996e-05,2]
[348399157,1736507438878,-500.0,9.996e-05,2]
[348399160,1736507438888,-508.20191655,9.996e-05,2]
[348399161,1736507438897,-507.05648626,9.996e-05,2]
[348399163,1736507438906,-500.0,9.996e-05,2]
[348399165,1736507438915,-500.0,9.996e-05,2]
[348399167,1736507438925,-500.0,9.996e-05,2]
[348399169,1736507438934,-500.0,9.996e-05,2]
[348399171,1736507438942,-507.50834352,9.996e-05,2]
[348399173,1736507438952,-500.0,9.996e-05,2]
[348399175,1736507438961,-500.0,9.996e-05,2]
[348399177,1736507438973,-608.63,9.996e-05,2]
[348399179,1736507438982,-500.0,9.996e-05,2]
[348399180,1736507438991,-500.0,9.996e-05,2]
[348399181,1736507439000,-497.0,9.996e-05,2]
[348399182,1736507439009,-500.0,9.996e-05,2]
[348399183,1736507439019,-385.98320947,9.996e-05,2]
[348399184,1736507439028,-613.93,9.996e-05,2]
[348399185,1736507439036,-500.0,9.996e-05,2]
[348399186,1736507439045,-500.0,9.996e-05,2]
[348399187,1736507439054,-505.5300253,9.996e-05,2]
[348399188,1736507439063,-500.0,9.996e-05,2]
[348399189,1736507439072,-500.0,9.996e-05,2]
[348399191,1736507439084,-510.03102609,9.996e-05,2]
[348399193,1736507439093,-407.54397642,9.996e-05,2]
[348399195,1736507439103,-500.0,9.996e-05,2]
[348399197,1736507439112,-506.41260666,9.996e-05,2]
[348399199,1736507439120,-500.0,9.996e-05,2]
[348399201,1736507439130,-538.26,9.996e-05,2]
[348399203,1736507439139,-507.78697136,9.996e-05,2]
[348399205,1736507439148,-500.0,9.996e-05,2]
[348399207,1736507439157,-500.0,9.996e-05,2]
[348399209,1736507439167,-500.0,9.996e-05,2]
[348399211,1736507439176,-500.0,9.996e-05,2]
[348399212,1736507439186,-500.0,9.996e-05,2]
[348399213,1736507439195,-500.0,9.996e-05,2]
[348399214,1736507439204,-500.0,9.996e-05,2]
[348399215,1736507439214,-500.0,9.996e-05,2]
[348399216,1736507439223,-584.51614515,9.996e-05,2]
[348399217,1736507439233,-500.0,9.996e-05,2]
[348399218,1736507439242,-502.7,9.996e-05,2]
[348399219,1736507439251,-500.0,9.996e-05,2]
[348399220,1736507439260,-500.0,9.996e-05,2]
[348399221,1736507439269,-500.0,9.996e-05,2]
[348399222,1736507439278,-500.0,9.996e-05,2]
[348399223,1736507439287,-500.0,9.996e-05,2]
[348399224,1736507439296,-628.41,9.996e-05,2]
[348399225,1736507439305,-500.0,9.996e-05,2]
[348399226,1736507439314,-507.35619597,9.996e-05,2]
[348399227,1736507439323,-500.0,9.996e-05,2]
[348399228,1736507439332,-509.78697576,9.996e-05,2]
[348399229,1736507439341,-573.79,9.996e-05,2]
[348399230,1736507439350,-507.0468476,9.996e-05,2]
[348399231,1736507439359,-500.0,9.996e-05,2]
[348399232,1736507439370,-500.0,9.996e-05,2]
[348399233,1736507439379,-512.26652455,9.996e-05,2]
[348399234,1736507439388,-507.10031861,9.996e-05,2]
[348399235,1736507439397,-500.0,9.996e-05,2]
[348399236,1736507439406,-607.89,9.996e-05,2]
[348399237,1736507439415,-500.0,9.996e-05,2]
[348399238,1736507439424,-503.90025109,9.996e-05,2]
[348399239,1736507439433,-459.68105068,9.996e-05,2]
[348399240,1736507439443,-507.41449634,9.996e-05,2]
[348399241,1736507439452,-503.00865064,9.996e-05,2]
[348399242,1736507439461,-500.0,9.996e-05,2]
[348399243,1736507439472,-500.0,9.996e-05,2]
[348399244,1736507439481,-500.0,9.996e-05,2]
[348399245,1736507439491,-500.0,9.996e-05,2]
[348399246,1736507439499,-704.37,9.996e-05,2]
[348399247,1736507439509,-500.0,9.996e-05,2]
[348399248,1736507439518,-508.31349443,9.996e-05,2]
[348399249,1736507439527,-500.0,9.996e-05,2]
[348399250,1736507439536,-500.0,9.996e-05,2]
[348399251,1736507439546,-500.0,9.996e-05,2]
[348399252,1736507439555,-500.0,9.996e-05,2]
[348399253,1736507439564,-500.0,9.996e-05,2]
[348399254,1736507439573,-541.72,9.996e-05,2]
[348399255,1736507439582,-500.0,9.996e-05,2]
[348399256,1736507439591,-354.09213963,9.996e-05,2]
[348399257,1736507439600,-333.9712648,9.996e-05,2]
[348399258,1736507439609,-500.0,9.996e-05,2]
[348399259,1736507439618,-500.0,9.996e-05,2]
[348399260,1736507439627,-631.59,9.996e-05,2]
[348399261,1736507439636,-500.0,9.996e-05,2]
[348399262,1736507439646,-500.0,9.996e-05,2]
[348399263,1736507439655,-500.0,9.996e-05,2]
[348399264,1736507439665,-500.0,9.996e-05,2]
[348399265,1736507439674,-672.43,9.996e-05,2]
[348399266,1736507439683,-500.0,9.996e-05,2]
[348399267,1736507439692,-504.5290319,9.996e-05,2]
[348399268,1736507439702,-526.0254184,9.996e-05,2]
[348399269,1736507439711,-500.0,9.996e-05,2]
[348399270,1736507439723,-508.91260871,9.996e-05,2]
[348399271,1736507439732,-689.49,9.996e-05,2]
[348399272,1736507439740,-500.0,9.996e-05,2]
[348399274,1736507439749,-500.0,9.996e-05,2]
[348399275,1736507439759,-500.0,9.996e-05,2]
[348399276,1736507439768,-500.0,9.996e-05,2]
[348399277,1736507439779,-500.0,9.996e-05,2]
[348399278,1736507439790,-638.3,9.996e-05,2]
[348399279,1736507439800,-500.0,9.996e-05,2]
[348399280,1736507439809,-500.0,9.996e-05,2]
[348399281,1736507439818,-634.72,9.996e-05,2]
[348399282,1736507439828,-598.12,9.996e-05,2]
[348399283,1736507439839,-737.16,9.996e-05,2]
[348399284,1736507439849,-500.0,9.996e-05,2]
[348399285,1736507439858,-500.0,9.996e-05,2]
[348399286,1736507439867,-500.0,9.996e-05,2]
[348399287,1736507439878,-500.0,9.996e-05,2]
[348399288,1736507439888,-500.0,9.996e-05,2]
[348399289,1736507439898,-500.0,9.996e-05,2]
[348399290,1736507439908,-500.0,9.996e-05,2]
[348399291,1736507439917,-500.0,9.996e-05,2]
[348399292,1736507439926,-642.13,9.996e-05,2]
[348399293,1736507439935,-669.4,9.996e-05,2]
[348399294,1736507439944,-503.43513508,9.996e-05,2]
[348399295,1736507439953,-696.61,9.996e-05,2]
[348399296,1736507439962,-500.0,9.996e-05,2]
[348399297,1736507439973,-500.0,9.996e-05,2]
[348399298,1736507439982,-500.0,9.996e-05,2]
[348399299,1736507439991,-500.0,9.996e-05,2]
[348399300,1736507440001,-573.49,9.996e-05,2]
[348399301,1736507440011,-500.0,9.996e-05,2]
[348399302,1736507440020,-500.0,9.996e-05,2]
[348399303,1736507440029,-500.0,9.996e-05,2]
[348399304,1736507440039,-500.0,9.996e-05,2]
[348399305,1736507440048,-500.0,9.996e-05,2]
[348399306,1736507440059,-1770.22,9.996e-05,2]
[348399307,1736507440070,-577.77,9.996e-05,2]
[348399308,1736507440079,-500.0,9.996e-05,2]
[348399309,1736507440089,-500.0,9.996e-05,2]
[348399310,1736507440099,-471.22094122,9.996e-05,2]
[348399311,1736507440108,-616.32,9.996e-05,2]
[348399312,1736507440117,-500.0,9.996e-05,2]
[348399313,1736507440126,-500.0,9.996e-05,2]
[348399314,1736507440135,-500.0,9.996e-05,2]
[348399315,1736507440145,-500.0,9.996e-05,2]
[348399316,1736507440154,-500.0,9.996e-05,2]
[348399317,1736507440163,-585.14,9.996e-05,2]
[348399318,1736507440174,-503.51380683,9.996e-05,2]
[348399319,1736507440185,-1036.68,9.996e-05,2]
[348399320,1736507440195,-654.08,9.996e-05,2]
[348399321,1736507440204,-500.0,9.996e-05,2]
[348399322,1736507440214,-500.0,9.996e-05,2]
[348399323,1736507440223,-500.0,9.996e-05,2]
[348399324,1736507440232,-500.0,9.996e-05,2]
[348399325,1736507440241,-511.9536194,9.996e-05,2]
[348399326,1736507440251,-589.2,9.996e-05,2]
[348399327,1736507440260,-500.0,9.996e-05,2]
[348399328,1736507440270,-840.08,9.996e-05,2]
[348399329,1736507440279,-500.0,9.996e-05,2]
[348399331,1736507440288,-571.77,9.996e-05,2]
[348399333,1736507440297,-1240.71,9.996e-05,2]
[348399335,1736507440307,-802.34,9.996e-05,2]
[348399337,1736507440316,-792.45,9.996e-05,2]
[348399339,1736507440326,-500.0,9.996e-05,2]
[348399341,1736507440335,-276.720643,9.996e-05,2]
[348399343,1736507440344,-2912.58,9.996e-05,2]
[348399345,1736507440354,-1132.29,9.996e-05,2]
[348399347,1736507440363,-500.0,9.996e-05,2]
[348399349,1736507440377,-811.54,9.996e-05,2]
[348399351,1736507440386,-500.0,9.996e-05,2]
[348399353,1736507440395,-344.86221741,9.996e-05,2]
[348399355,1736507440405,-5269.25,9.996e-05,2]
[348399357,1736507440415,-2263.79,9.996e-05,2]
[348399359,1736507440423,-547.15,9.996e-05,2]
[348399361,1736507440432,-616.35,9.996e-05,2]
[348399362,1736507440442,-529.65,9.996e-05,2]
[348399363,1736507440453,-633.52,9.996e-05,2]
[348399364,1736507440463,-618.79,9.996e-05,2]
[348399365,1736507440473,-2631.21,9.996e-05,2]
[348399366,1736507440482,-500.0,9.996e-05,2]
[348399367,1736507440491,-500.0,9.996e-05,2]
[348399368,1736507440501,-500.0,9.996e-05,2]
[348399369,1736507440511,-301.397241,9.996e-05,2]
[348399370,1736507440522,-592.76,9.996e-05,2]
[348399371,1736507440533,-2391.16,9.996e-05,2]
[348399372,1736507440545,-668.03,9.996e-05,2]
[348399373,1736507440555,-505.92374303,9.996e-05,2]
[348399374,1736507440564,-763.54,9.996e-05,2]
[348399375,1736507440574,-500.0,9.996e-05,2]
[348399376,1736507440583,-900.15,9.996e-05,2]
[348399377,1736507440592,-500.0,9.996e-05,2]
[348399378,1736507440601,-500.0,9.996e-05,2]
[348399379,1736507440613,-2541.76,9.996e-05,2]
[348399380,1736507440624,-500.0,9.996e-05,2]